fUSD/lending_fUSD_20250616
["ID","MTS","AMOUNT","RATE_DAILY","PERIOD"]
[366106087,1750066248988,-1157.1,0.00016438,2]
[366106088,1750066249433,-1182.86,0.00016438,2]
[366106089,1750066249446,-490.0,0.00016438,2]
[366106090,1750066249458,-490.0,0.00016438,2]
[366106091,1750066249469,-1447.26,0.00016438,2]
[366106092,1750066249480,-1493.83,0.00016438,2]
[366106093,1750066249492,-490.0,0.00016438,2]
[366106094,1750066249502,-490.0,0.00016438,2]
[366106095,1750066249513,-490.0,0.00016438,2]
[366106096,1750066249523,-6003.98822927,0.00016438,2]
[366106097,1750066249542,-1225.01904747,0.00016438,2]
[366106098,1750066249560,-298.67000001,0.00016438,2]
[366106099,1750066249573,-413.69196566,0.00016438,2]
[366106100,1750066249586,-926.80776368,0.00016438,2]
[366106101,1750066249605,-11605.02299391,0.00016438,2]
[366106102,1750066249616,-490.0,0.00016438,2]
[366106103,1750066249631,-585.6,0.00016438,2]
[366106104,1750066249643,-16786.68,0.00016438,2]
[366106105,1750066249654,-988.28,0.00016438,2]
[366106106,1750066249664,-490.0,0.00016438,2]
[366106107,1750066249675,-1301.54,0.00016438,2]
[366106108,1750066249686,-2799.35,0.00016438,2]
[366106109,1750066249699,-490.0,0.00016438,2]
[366106110,1750066249710,-2760.7,0.00016438,2]
[366106111,1750066249720,-490.0,0.00016438,2]
[366106112,1750066249731,-490.0,0.00016438,2]
[366106113,1750066249742,-490.0,0.00016438,2]
[366106114,1750066249753,-863.11,0.00016438,2]
[366106115,1750066249764,-730.34,0.00016438,2]
[366106116,1750066249776,-490.0,0.00016438,2]
[366106117,1750066249786,-1155.55,0.00016438,2]
[366106118,1750066249797,-602.8,0.00016438,2]
[366106119,1750066249807,-510.96,0.00016438,2]
[366106120,1750066249817,-490.0,0.00016438,2]
[366106121,1750066249827,-2381.42,0.00016438,2]
[366106122,1750066249836,-2222.92,0.00016438,2]
[366106123,1750066249846,-490.0,0.00016438,2]
[366106124,1750066249856,-961.93,0.00016438,2]
[366106125,1750066249866,-953.85,0.00016438,2]
[366106126,1750066249878,-490.0,0.00016438,2]
[366106127,1750066249888,-2465.9,0.00016438,2]
[366106128,1750066249898,-150.0,0.00016438,2]
[366106129,1750066249907,-439.62853237,0.00016441,2]
[366106130,1750066249917,-3438.93064859,0.00016448,2]
[366106131,1750066249927,-150.0,0.00016459,2]
[366106132,1750066249937,-150.0,0.00016465,2]
[366106133,1750066249947,-150.0,0.00016473,2]
[366106134,1750066249957,-150.0,0.00016477,2]
[366106135,1750066249967,-150.0,0.0001648,2]
[366106136,1750066249977,-150.0,0.0001648,2]
[366106137,1750066249988,-150.0,0.00016482,2]
[366106138,1750066249997,-150.0,0.00016482,2]
[366106139,1750066250007,-150.0,0.00016482,2]
[366106140,1750066250022,-150.0,0.00016483,2]
[366106141,1750066250031,-150.0,0.00016484,2]
[366106142,1750066250041,-3438.93064859,0.00016484,2]
[366106143,1750066250050,-150.0,0.00016488,2]
[366106144,1750066250060,-150.0,0.0001649,2]
[366106145,1750066250070,-150.0,0.0001649,2]
[366106146,1750066250080,-150.0,0.00016492,2]
[366106147,1750066250091,-150.0,0.00016492,2]
[366106148,1750066250102,-439.62853237,0.00016492,2]
[366106149,1750066250111,-150.0,0.00016493,2]
[366106150,1750066250123,-150.0,0.00016496,2]
[366106151,1750066250133,-150.0,0.00016497,2]
[366106152,1750066250144,-175.28608274,0.00016498,2]
[366106153,1750066250153,-157.48677892,0.00016498,2]
[366106154,1750066250163,-150.0,0.00016498,2]
[366106155,1750066250175,-150.0,0.00016499,2]
[366106156,1750066250184,-455.2,0.000165,2]
[366106157,1750066250193,-700.0,0.000165,6]
[366106158,1750066250203,-30000.0,0.000165,2]
[366106159,1750066250213,-150.0,0.00016501,2]
[366106160,1750066250222,-150.0,0.00016505,2]
[366106161,1750066250231,-833.8156298,0.00016507,2]
[366106162,1750066250241,-151.09130387,0.0001651,2]
[366106163,1750066250251,-150.0,0.00016511,2]
[366106164,1750066250261,-150.0,0.00016512,2]
[366106165,1750066250271,-150.0,0.00016515,2]
[366106166,1750066250281,-150.0,0.00016516,2]
[366106167,1750066250291,-1000.0,0.00016516,2]
[366106168,1750066250300,-150.0,0.00016518,2]
[366106169,1750066250310,-150.0,0.00016519,2]
[366106170,1750066250319,-3438.93064859,0.00016521,2]
[366106171,1750066250329,-150.0,0.00016524,2]
[366106172,1750066250340,-150.0,0.00016528,2]
[366106173,1750066250349,-150.0,0.00016528,2]
[366106174,1750066250359,-150.0,0.00016529,2]
[366106175,1750066250370,-150.0,0.0001653,2]
[366106176,1750066250380,-150.0,0.0001653,2]
[366106177,1750066250390,-150.0,0.00016532,2]
[366106178,1750066250400,-150.0,0.00016536,2]
[366106179,1750066250410,-150.0,0.00016537,2]
[366106180,1750066250420,-150.0,0.00016542,2]
[366106181,1750066250430,-439.62853237,0.00016543,2]
[366106182,1750066250440,-150.0,0.00016544,2]
[366106183,1750066250450,-150.0,0.00016544,2]
[366106184,1750066250469,-150.0,0.0001655,2]
[366106185,1750066250483,-150.0,0.00016553,2]
[366106186,1750066250493,-150.0,0.00016554,2]
[366106187,1750066250503,-3438.93064859,0.00016557,2]
[366106188,1750066250514,-1000.0,0.00016564,2]
[366106189,1750066250524,-150.0,0.00016567,2]
[366106190,1750066250535,-150.0,0.00016569,2]
[366106191,1750066250545,-150.0,0.00016569,2]
[366106192,1750066250555,-150.0,0.00016573,2]
[366106193,1750066250565,-150.0,0.0001658,2]
[366106194,1750066250576,-150.0,0.00016582,2]
[366106195,1750066250587,-150.0,0.00016582,2]
[366106196,1750066250597,-150.0,0.00016583,2]
[366106197,1750066250607,-16624.2324009,0.00016584,2]
[366106198,1750066250619,-150.0,0.00016586,2]
[366106199,1750066250629,-150.0,0.00016588,2]
[366106200,1750066250641,-171.3747989,0.00016588,2]
[366106201,1750066250652,-500.0,0.00016592,2]
[366106202,1750066250662,-500.0,0.00016592,2]
[366106203,1750066250673,-3438.93064859,0.00016594,2]
[366106204,1750066250684,-150.0,0.00016594,2]
[366106205,1750066250696,-439.62853237,0.00016595,2]
[366106206,1750066250707,-730.184,0.00016595,2]
[366106207,1750066250717,-500.0,0.00016596,2]
[366106208,1750066250727,-6816.64388979,0.00016597,2]
[366106209,1750066250737,-151.0,0.00016597,2]
[366106210,1750066250747,-151.0,0.00016597,2]
[366106211,1750066250757,-481.340211,0.00016597,2]
[366106212,1750066250767,-481.340211,0.00016597,2]
[366106213,1750066250778,-242.111247,0.00016597,2]
[366106214,1750066250789,-242.111247,0.00016597,2]
[366106215,1750066250798,-392.076787,0.00016597,2]
[366106216,1750066250808,-392.076787,0.00016597,2]
[366106217,1750066250819,-10167.4676685,0.00016597,2]
[366106218,1750066250829,-197.16,0.00016597,2]
[366106219,1750066250839,-86379.4566648,0.00016597,2]
[366106220,1750066250849,-5786.8945414,0.00016597,2]
[366106221,1750066250860,-55686.291974,0.00016597,2]
[366106222,1750066250872,-500.0,0.00016597,2]
[366106223,1750066250882,-163338.05083665,0.00016598,2]
[366106224,1750066250912,-16680.09854244,0.00016598,2]
[366106243,1750066359923,674.82,0.00015398,2]
[366106284,1750066483448,1000.0,0.00015381,2]
[366106299,1750066621348,156.89,0.00013699,2]
[366106323,1750066926413,166.49,0.00015371,2]
[366106327,1750066937428,594.0,0.00024658,120]
[366106331,1750066954704,169.13,0.00015372,2]
[366106345,1750067052273,203.0,0.00014504,2]
[366106388,1750067336774,476.19,0.00015367,2]
[366106407,1750067412425,203.0,0.00014883,2]
[366106410,1750067431715,-169.31432995,0.00015841,2]
[366106411,1750067431726,-166.78,0.00015841,2]
[366106412,1750067431735,-300.0,0.00015862,2]
[366106413,1750067431746,-300.0,0.00016056,2]
[366106414,1750067431756,-303.05,0.00016105,2]
[366106415,1750067431765,-302.66,0.00016221,2]
[366106416,1750067431776,-143.02458276,0.00016231,2]
[366106417,1750067431787,-157.37541724,0.00016231,2]
[366106418,1750067431798,-203.0,0.00016293,3]
[366106419,1750067431807,-151.0,0.0001632,2]
[366106420,1750067431817,-207.4,0.0001632,2]
[366106421,1750067431830,-150.0,0.00016324,2]
[366106422,1750067431839,-150.0,0.00016327,2]
[366106423,1750067431849,-118.25,0.00016328,2]
[366106424,1750067431891,-31.75,0.00016328,2]
[366106425,1750067431902,-1200.0,0.0001633,2]
[366106426,1750067431912,-301.15,0.00016331,2]
[366106427,1750067431922,-301.97,0.00016331,2]
[366106428,1750067431932,-150.0,0.00016331,2]
[366106429,1750067431942,-300.0,0.00016331,2]
[366106430,1750067431951,-303.32,0.00016331,2]
[366106431,1750067431961,-304.45,0.00016331,2]
[366106432,1750067431971,-302.72,0.00016331,2]
[366106433,1750067431980,-490.36,0.00016331,2]
[366106434,1750067431990,-504.21,0.00016331,2]
[366106435,1750067432000,-504.55,0.00016332,2]
[366106436,1750067432010,-508.09,0.00016332,2]
[366106437,1750067432020,-300.76,0.00016332,2]
[366106438,1750067432030,-300.47,0.00016332,2]
[366106439,1750067432041,-499.76,0.00016332,2]
[366106440,1750067432051,-301.32,0.00016332,2]
[366106441,1750067432061,-303.98,0.00016332,2]
[366106442,1750067432072,-150.0,0.00016336,2]
[366106443,1750067432083,-150.0,0.00016336,2]
[366106444,1750067432092,-175.85141302,0.00016338,2]
[366106445,1750067432103,-687.78612979,0.00016338,2]
[366106446,1750067432113,-177.18391154,0.00016338,2]
[366106447,1750067432123,-150.0,0.00016339,2]
[366106448,1750067432133,-150.0,0.0001634,2]
[366106449,1750067432143,-150.0,0.00016341,2]
[366106451,1750067432155,-150.0,0.00016343,2]
[366106453,1750067432165,-150.0,0.00016344,2]
[366106455,1750067432175,-150.0,0.0001635,2]
[366106457,1750067432186,-150.0,0.00016351,2]
[366106459,1750067432195,-150.0,0.00016352,2]
[366106461,1750067432205,-150.0,0.00016359,2]
[366106463,1750067432215,-150.0,0.00016361,2]
[366106465,1750067432224,-150.0,0.00016367,2]
[366106467,1750067432234,-150.0,0.00016367,2]
[366106469,1750067432243,-150.0,0.00016368,2]
[366106471,1750067432253,-150.0,0.00016372,2]
[366106473,1750067432263,-255.0,0.00016377,2]
[366106475,1750067432273,-104.31854565,0.00016377,2]
[366106479,1750067432299,-150.0,0.00016372,2]
[366106480,1750067432309,-160.01145435,0.00016377,2]
[366106483,1750067432319,-150.0,0.0001638,2]
[366106485,1750067432330,-150.0,0.0001638,2]
[366106487,1750067432340,-150.0,0.00016382,2]
[366106490,1750067432350,-150.0,0.00016383,2]
[366106492,1750067432361,-175.85141294,0.00016393,2]
[366106494,1750067432371,-687.78612971,0.00016393,2]
[366106496,1750067432380,-150.0,0.00016396,2]
[366106497,1750067432391,-150.0,0.00016398,2]
[366106498,1750067432400,-150.0,0.00016398,2]
[366106499,1750067432409,-150.0,0.00016398,2]
[366106500,1750067432419,-150.0,0.00016403,2]
[366106501,1750067432428,-360.15532559,0.00016403,2]
[366106502,1750067432439,-411.8444199,0.00016403,2]
[366107006,1750067437684,-228.00025451,0.00016403,2]
[366107008,1750067437695,-150.0,0.00016405,2]
[366107009,1750067437705,-150.0,0.0001641,2]
[366107011,1750067437715,-109.53699653,0.00016412,2]
[366107021,1750067437846,-40.46300347,0.00016412,2]
[366107023,1750067437856,-150.0,0.00016418,2]
[366107025,1750067437866,-150.0,0.00016421,2]
[366107026,1750067437876,-150.0,0.00016422,2]
[366107028,1750067437886,-150.0,0.00016424,2]
[366107030,1750067437895,-150.0,0.00016431,2]
[366107032,1750067437905,-76.88699654,0.00016431,2]
[366107036,1750067437957,-55.21004688,0.00016431,2]
[366107199,1750067439892,-17.90295658,0.00016431,2]
[366107201,1750067439903,-150.0,0.00016432,2]
[366107203,1750067439912,-332.09704342,0.00016438,2]
[366107211,1750067439980,-157.90295658,0.00016438,2]
[366107213,1750067439990,-490.0,0.00016438,2]
[366107215,1750067439999,-490.0,0.00016438,2]
[366107217,1750067440009,-490.0,0.00016438,2]
[366107219,1750067440019,-490.0,0.00016438,2]
[366107221,1750067440028,-490.0,0.00016438,2]
[366107223,1750067440038,-486.96421245,0.00016438,2]
[366107225,1750067440051,-3.03578755,0.00016438,2]
[366107227,1750067440061,-490.0,0.00016438,2]
[366107229,1750067440073,-230.18355522,0.00016438,2]
[366107231,1750067440085,-259.81644478,0.00016438,2]
[366107233,1750067440095,-228.07368369,0.00016438,2]
[366107238,1750067440135,-152.35108738,0.00016338,2]
[366107240,1750067440147,-187.13220744,0.00016438,2]
[366107246,1750067440194,-74.79410887,0.00016438,2]
[366107248,1750067440204,-213.28588497,0.00016438,2]
[366107503,1750067442735,-286.71411503,0.00016438,2]
[366107505,1750067442745,-462.50855452,0.00016438,2]
[366107539,1750067443050,-37.49144548,0.00016438,2]
[366107541,1750067443061,-471.775395,0.00016438,2]
[366107543,1750067443073,-490.0,0.00016438,2]
[366107545,1750067443083,-490.0,0.00016438,2]
[366107547,1750067443092,-490.0,0.00016438,2]
[366107549,1750067443102,-490.0,0.00016438,2]
[366107551,1750067443112,-490.0,0.00016438,2]
[366107553,1750067443121,-490.0,0.00016438,2]
[366107555,1750067443131,-490.0,0.00016438,2]
[366107557,1750067443141,-490.0,0.00016438,2]
[366107559,1750067443152,-490.0,0.00016438,2]
[366107561,1750067443162,-490.0,0.00016438,2]
[366107563,1750067443171,-490.0,0.00016438,2]
[366107565,1750067443181,-490.0,0.00016438,2]
[366107567,1750067443190,-490.0,0.00016438,2]
[366107570,1750067443199,-490.0,0.00016438,2]
[366107572,1750067443208,-490.0,0.00016438,2]
[366107574,1750067443217,-490.0,0.00016438,2]
[366107576,1750067443226,-490.0,0.00016438,2]
[366107578,1750067443236,-490.0,0.00016438,2]
[366107580,1750067443246,-863.55,0.00016438,2]
[366107582,1750067443255,-490.0,0.00016438,2]
[366107584,1750067443265,-490.0,0.00016438,2]
[366107586,1750067443274,-570.32,0.00016438,2]
[366107588,1750067443283,-89.90738766,0.00016438,2]
[366107592,1750067443312,-400.09261234,0.00016438,2]
[366107594,1750067443321,-490.0,0.00016438,2]
[366107595,1750067443331,-490.0,0.00016438,2]
[366107597,1750067443341,-490.0,0.00016438,2]
[366107599,1750067443350,-490.0,0.00016438,2]
[366107600,1750067443361,-490.0,0.00016438,2]
[366107601,1750067443371,-490.0,0.00016438,2]
[366107602,1750067443382,-490.0,0.00016438,2]
[366107603,1750067443392,-501.97,0.00016438,2]
[366107604,1750067443401,-490.0,0.00016438,2]
[366107605,1750067443411,-490.0,0.00016438,2]
[366107606,1750067443421,-156.43738766,0.00016438,2]
[366107607,1750067443442,-333.56261234,0.00016438,2]
[366107608,1750067443451,-839.1,0.00016438,2]
[366107609,1750067443460,-490.0,0.00016438,2]
[366107610,1750067443470,-490.0,0.00016438,2]
[366107611,1750067443479,-646.75,0.00016438,2]
[366107612,1750067443493,-490.0,0.00016438,2]
[366107614,1750067443503,-490.0,0.00016438,2]
[366107616,1750067443512,-926.6,0.00016438,2]
[366107618,1750067443522,-490.0,0.00016438,2]
[366107620,1750067443532,-490.0,0.00016438,2]
[366107622,1750067443542,-586.76,0.00016438,2]
[366107624,1750067443551,-490.0,0.00016438,2]
[366107626,1750067443561,-736.42,0.00016438,2]
[366107628,1750067443570,-490.0,0.00016438,2]
[366107630,1750067443580,-490.0,0.00016438,2]
[366107632,1750067443589,-493.9,0.00016438,2]
[366107634,1750067443599,-490.0,0.00016438,2]
[366107636,1750067443608,-490.0,0.00016438,2]
[366107638,1750067443618,-490.0,0.00016438,2]
[366107640,1750067443628,-919.13,0.00016438,2]
[366107642,1750067443637,-914.11,0.00016438,2]
[366107644,1750067443648,-490.0,0.00016438,2]
[366107646,1750067443658,-490.0,0.00016438,2]
[366107648,1750067443668,-490.0,0.00016438,2]
[366107650,1750067443678,-490.0,0.00016438,2]
[366107652,1750067443688,-878.67,0.00016438,2]
[366107654,1750067443698,-490.0,0.00016438,2]
[366107656,1750067443707,-490.0,0.00016438,2]
[366107658,1750067443718,-753.05,0.00016438,2]
[366107660,1750067443727,-769.07,0.00016438,2]
[366107662,1750067443736,-490.0,0.00016438,2]
[366107664,1750067443746,-490.0,0.00016438,2]
[366107666,1750067443756,-619.84,0.00016438,2]
[366107668,1750067443766,-490.0,0.00016438,2]
[366107670,1750067443776,-763.27,0.00016438,2]
[366107672,1750067443786,-1227.7,0.00016438,2]
[366107674,1750067443795,-809.53,0.00016438,2]
[366107676,1750067443805,-490.0,0.00016438,2]
[366107678,1750067443815,-202.36911417,0.00016438,2]
[366107680,1750067443825,-521.82,0.00016438,2]
[366107682,1750067443834,-490.0,0.00016438,2]
[366107684,1750067443844,-556.44,0.00016438,2]
[366107686,1750067443854,-1020.12,0.00016438,2]
[366107688,1750067443864,-490.0,0.00016438,2]
[366107690,1750067443874,-1025.48,0.00016438,2]
[366107692,1750067443883,-490.0,0.00016438,2]
[366107694,1750067443893,-490.0,0.00016438,2]
[366107696,1750067443917,-1169.98,0.00016438,2]
[366107698,1750067443927,-1165.68,0.00016438,2]
[366107700,1750067443937,-989.25,0.00016438,2]
[366107702,1750067443946,-654.87,0.00016438,2]
[366107704,1750067443956,-490.0,0.00016438,2]
[366107706,1750067443966,-995.77,0.00016438,2]
[366107708,1750067443976,-490.0,0.00016438,2]
[366107710,1750067443985,-1143.11,0.00016438,2]
[366107712,1750067443995,-490.0,0.00016438,2]
[366107714,1750067444004,-490.0,0.00016438,2]
[366107716,1750067444014,-603.05,0.00016438,2]
[366107718,1750067444023,-490.0,0.00016438,2]
[366107719,1750067444038,-490.0,0.00016438,2]
[366107721,1750067444048,-734.24,0.00016438,2]
[366107723,1750067444058,-943.49,0.00016438,2]
[366107725,1750067444068,-592.78,0.00016438,2]
[366107727,1750067444081,-734.29,0.00016438,2]
[366107729,1750067444091,-490.0,0.00016438,2]
[366107731,1750067444101,-496.34,0.00016438,2]
[366107733,1750067444111,-793.64,0.00016438,2]
[366107735,1750067444121,-697.23,0.00016438,2]
[366107737,1750067444132,-538.14,0.00016438,2]
[366107739,1750067444141,-490.0,0.00016438,2]
[366107741,1750067444151,-490.0,0.00016438,2]
[366107743,1750067444161,-760.24,0.00016438,2]
[366107745,1750067444169,-490.0,0.00016438,2]
[366107747,1750067444179,-490.0,0.00016438,2]
[366107749,1750067444188,-490.0,0.00016438,2]
[366107751,1750067444197,-490.0,0.00016438,2]
[366107753,1750067444207,-675.86,0.00016438,2]
[366107755,1750067444216,-534.36,0.00016438,2]
[366107757,1750067444226,-1260.7,0.00016438,2]
[366107759,1750067444235,-490.0,0.00016438,2]
[366107761,1750067444244,-779.91,0.00016438,2]
[366107763,1750067444253,-845.55,0.00016438,2]
[366107765,1750067444263,-490.0,0.00016438,2]
[366107767,1750067444272,-490.0,0.00016438,2]
[366107769,1750067444281,-536.46,0.00016438,2]
[366107771,1750067444291,-525.34339406,0.00016438,2]
[366107773,1750067444301,-490.0,0.00016438,2]
[366107775,1750067444311,-490.0,0.00016438,2]
[366107777,1750067444320,-552.08,0.00016438,2]
[366107779,1750067444329,-490.0,0.00016438,2]
[366107781,1750067444340,-490.0,0.00016438,2]
[366107783,1750067444349,-1740.48,0.00016438,2]
[366107785,1750067444359,-490.6,0.00016438,2]
[366107787,1750067444368,-808.23,0.00016438,2]
[366107789,1750067444377,-490.0,0.00016438,2]
[366107791,1750067444386,-1012.08,0.00016438,2]
[366107793,1750067444397,-490.0,0.00016438,2]
[366107795,1750067444406,-490.0,0.00016438,2]
[366107797,1750067444417,-490.0,0.00016438,2]
[366107799,1750067444426,-490.0,0.00016438,2]
[366107801,1750067444436,-649.39,0.00016438,2]
[366107803,1750067444446,-1326.28,0.00016438,2]
[366107805,1750067444455,-521.06,0.00016438,2]
[366107807,1750067444464,-490.0,0.00016438,2]
[366107809,1750067444473,-490.0,0.00016438,2]
[366107811,1750067444483,-203.64704377,0.00016438,2]
[366107895,1750067445684,-286.35295623,0.00016438,2]
[366107897,1750067445694,-588.35,0.00016438,2]
[366107899,1750067445703,-90.86945125,0.00016438,2]
[366107909,1750067445793,-399.13054875,0.00016438,2]
[366107911,1750067445804,-1313.83,0.00016438,2]
[366107913,1750067445814,-602.25,0.00016438,2]
[366107915,1750067445823,-508.05,0.00016438,2]
[366107917,1750067445832,-490.0,0.00016438,2]
[366107919,1750067445842,-490.0,0.00016438,2]
[366107921,1750067445852,-490.0,0.00016438,2]
[366107923,1750067445862,-490.0,0.00016438,2]
[366107925,1750067445871,-504.89,0.00016438,2]
[366107927,1750067445881,-490.0,0.00016438,2]
[366107929,1750067445891,-490.0,0.00016438,2]
[366107931,1750067445900,-490.0,0.00016438,2]
[366107933,1750067445910,-787.8,0.00016438,2]
[366107935,1750067445919,-490.0,0.00016438,2]
[366107937,1750067445929,-914.94,0.00016438,2]
[366107939,1750067445939,-1343.22,0.00016438,2]
[366107941,1750067445948,-490.0,0.00016438,2]
[366107943,1750067445958,-490.0,0.00016438,2]
[366107945,1750067445967,-511.99,0.00016438,2]
[366107947,1750067445977,-300.0,0.00016438,2]
[366107949,1750067445986,-828.02,0.00016438,2]
[366107951,1750067445996,-895.61,0.00016438,2]
[366107953,1750067446006,-490.0,0.00016438,2]
[366107955,1750067446015,-1227.33,0.00016438,2]
[366107957,1750067446025,-844.54,0.00016438,2]
[366107959,1750067446034,-856.22,0.00016438,2]
[366107961,1750067446044,-555.99,0.00016438,2]
[366107963,1750067446053,-1155.97,0.00016438,2]
[366107964,1750067446063,-1846.02,0.00016438,2]
[366107966,1750067446074,-490.0,0.00016438,2]
[366107968,1750067446084,-621.81,0.00016438,2]
[366107970,1750067446093,-490.0,0.00016438,2]
[366107973,1750067446103,-490.0,0.00016438,2]
[366107974,1750067446112,-490.0,0.00016438,2]
[366107976,1750067446122,-490.0,0.00016438,2]
[366107980,1750067446132,-490.0,0.00016438,2]
[366107983,1750067446143,-541.34,0.00016438,2]
[366107985,1750067446153,-490.0,0.00016438,2]
[366107987,1750067446163,-490.0,0.00016438,2]
[366107988,1750067446173,-493.47,0.00016438,2]
[366107990,1750067446184,-1359.41,0.00016438,2]
[366107993,1750067446194,-490.0,0.00016438,2]
[366107994,1750067446204,-490.0,0.00016438,2]
[366107996,1750067446214,-1758.62,0.00016438,2]
[366107999,1750067446224,-490.0,0.00016438,2]
[366108000,1750067446235,-490.0,0.00016438,2]
[366108003,1750067446244,-490.0,0.00016438,2]
[366108005,1750067446254,-490.0,0.00016438,2]
[366108006,1750067446263,-490.0,0.00016438,2]
[366108008,1750067446273,-490.0,0.00016438,2]
[366108009,1750067446282,-490.0,0.00016438,2]
[366108011,1750067446295,-1466.79,0.00016438,2]
[366108013,1750067446304,-490.0,0.00016438,2]
[366108015,1750067446314,-490.0,0.00016438,2]
[366108017,1750067446324,-490.0,0.00016438,2]
[366108019,1750067446333,-490.0,0.00016438,2]
[366108021,1750067446343,-490.0,0.00016438,2]
[366108023,1750067446352,-1244.6,0.00016438,2]
[366108024,1750067446362,-490.0,0.00016438,2]
[366108026,1750067446371,-490.0,0.00016438,2]
[366108028,1750067446381,-934.69,0.00016438,2]
[366108030,1750067446390,-846.62,0.00016438,2]
[366108032,1750067446399,-1202.66,0.00016438,2]
[366108034,1750067446408,-490.0,0.00016438,2]
[366108036,1750067446418,-490.0,0.00016438,2]
[366108038,1750067446427,-1186.74,0.00016438,2]
[366108040,1750067446436,-490.0,0.00016438,2]
[366108042,1750067446445,-2006.25,0.00016438,2]
[366108044,1750067446455,-490.0,0.00016438,2]
[366108046,1750067446464,-490.0,0.00016438,2]
[366108048,1750067446474,-983.42,0.00016438,2]
[366108050,1750067446483,-490.0,0.00016438,2]
[366108052,1750067446492,-687.89,0.00016438,2]
[366108054,1750067446503,-490.0,0.00016438,2]
[366108056,1750067446512,-1062.84,0.00016438,2]
[366108058,1750067446521,-755.71,0.00016438,2]
[366108060,1750067446531,-490.0,0.00016438,2]
[366108061,1750067446544,-490.0,0.00016438,2]
[366108063,1750067446554,-490.0,0.00016438,2]
[366108065,1750067446564,-555.12,0.00016438,2]
[366108067,1750067446573,-490.0,0.00016438,2]
[366108069,1750067446583,-490.0,0.00016438,2]
[366108071,1750067446592,-1378.68,0.00016438,2]
[366108073,1750067446601,-490.0,0.00016438,2]
[366108075,1750067446611,-1053.28,0.00016438,2]
[366108077,1750067446620,-490.0,0.00016438,2]
[366108079,1750067446630,-490.0,0.00016438,2]
[366108081,1750067446639,-490.0,0.00016438,2]
[366108083,1750067446649,-490.0,0.00016438,2]
[366108085,1750067446658,-1061.54,0.00016438,2]
[366108087,1750067446667,-490.0,0.00016438,2]
[366108089,1750067446677,-1115.26,0.00016438,2]
[366108091,1750067446686,-490.0,0.00016438,2]
[366108093,1750067446696,-490.0,0.00016438,2]
[366108095,1750067446705,-490.0,0.00016438,2]
[366108097,1750067446715,-1057.12,0.00016438,2]
[366108099,1750067446725,-490.0,0.00016438,2]
[366108101,1750067446734,-490.0,0.00016438,2]
[366108103,1750067446743,-1293.72,0.00016438,2]
[366108105,1750067446752,-490.0,0.00016438,2]
[366108107,1750067446762,-844.21,0.00016438,2]
[366108109,1750067446771,-490.0,0.00016438,2]
[366108111,1750067446781,-490.0,0.00016438,2]
[366108113,1750067446791,-490.0,0.00016438,2]
[366108115,1750067446800,-1248.61,0.00016438,2]
[366108116,1750067446810,-490.0,0.00016438,2]